bitfinex/quotes_SOLUSD_20250112
["timestamp","ask_amount","ask_price","bid_price","bid_amount"]
[1736695922867,14.92360255,190.32,190.26,14.92360255]
[1736695923033,0.5,190.31,190.26,14.92360255]
[1736695923237,15.42360255,190.31,190.25,14.92360255]
[1736695924533,16.96480255,190.31,190.25,14.92360255]
[1736695925265,14.92360255,190.3,190.24,14.92360255]
[1736695925558,0.5,190.29,190.24,14.92360255]
[1736695925774,15.42360255,190.3,190.24,14.92360255]
[1736695925937,15.44066717,190.3,190.24,14.94066717]
[1736695926138,14.94066717,190.29,190.24,14.94066717]
[1736695926352,15.44066717,190.3,190.24,14.94066717]
[1736695927555,14.94066717,190.29,190.23,14.94066717]
[1736695927865,0.5,190.3,190.19,23.776884]
[1736695927866,14.94066717,190.25,190.19,14.94066717]
[1736695928255,14.94066717,190.27,190.21,14.94066717]
[1736695928456,14.94066717,190.27,190.22,14.94066717]
[1736695928756,14.94066717,190.25,190.16,23.776884]
[1736695928937,0.5,190.24,190.19,14.94066717]
[1736695929834,14.94066717,190.28,190.22,14.94066717]
[1736695930029,0.5,190.27,190.22,14.94066717]
[1736695930346,0.5,190.27,190.22,14.94385928]
[1736695930752,14.94385928,190.28,190.22,14.94385928]
[1736695930935,14.94385928,190.29,190.23,14.94385928]
[1736695931136,0.5,190.28,190.23,14.94385928]
[1736695931354,15.44385928,190.28,190.23,14.94385928]
[1736695931556,15.44385928,190.28,190.22,14.94385928]
[1736695931761,14.94385928,190.27,190.21,14.94385928]
[1736695931933,0.5,190.26,190.21,14.94385928]
[1736695932263,15.44385928,190.26,190.2,14.94385928]
[1736695932565,14.94385928,190.27,190.22,14.94385928]
[1736695932765,0.5,190.26,190.22,14.94385928]
[1736695932966,0.5,190.26,190.21,14.94385928]
[1736695935237,15.44385928,190.26,190.2,14.94385928]
[1736695936165,0.5,190.26,190.21,14.94385928]
[1736695936363,15.44385928,190.26,190.2,14.94385928]
[1736695936746,14.94385928,190.25,190.2,14.94385928]
[1736695936960,0.5,190.24,190.2,14.94385928]
[1736695937140,0.5,190.24,190.19,14.94385928]
[1736695937759,15.44385928,190.24,190.18,14.94385928]
[1736695937958,17.04865928,190.24,190.19,14.94385928]
[1736695938272,2.1048,190.24,190.19,14.94385928]
[1736695938647,17.04865928,190.24,190.19,14.94385928]
[1736695938858,17.04865928,190.24,190.18,14.94385928]
[1736695939056,17.04865928,190.24,190.19,14.94385928]
[1736695939253,2.1048,190.24,190.19,14.94385928]
[1736695939449,1.6048,190.24,190.22,9.56647367]
[1736695940552,1.6048,190.24,190.21,9.56647367]
[1736695942677,1.6048,190.24,190.2,9.56647367]
[1736695943541,1.6048,190.24,190.13,18.68218254]
[1736695943542,1.6048,190.24,190.13,17.7682]
[1736695943738,0.5,190.23,190.18,9.56647367]
[1736695944868,0.5,190.23,190.19,9.56647367]
[1736695945070,1.6048,190.24,190.21,9.56647367]
[1736695945388,2.1048,190.29,190.23,9.56647367]
[1736695945676,2.1048,190.29,190.25,9.56647367]
[1736695945863,1.6048,190.29,190.26,9.56647367]
[1736695946041,1.6048,190.29,190.21,23.776884]
[1736695946366,0.5,190.28,190.24,9.56647367]
[1736695946558,2.1048,190.29,190.24,9.56647367]
[1736695946741,1.6048,190.29,190.25,9.56647367]
[1736695946947,1.6048,190.29,190.26,9.56647367]
[1736695947541,20.5,190.31,190.26,9.56647367]
[1736695947746,6.6391,190.34,190.3,9.56647367]
[1736695948049,1.6045,190.35,190.3,9.56647367]
[1736695948247,1.6045,190.35,190.32,9.56647367]
[1736695948549,0.5,190.38,190.33,9.56647367]
[1736695948962,0.5,190.39,190.35,9.56647367]
[1736695949274,0.5,190.39,190.34,9.56647367]
[1736695949564,9.56647367,190.38,190.33,9.56647367]
[1736695949773,9.56647367,190.38,190.32,9.56647367]
[1736695949975,9.56647367,190.39,190.33,9.56647367]
[1736695950153,9.56647367,190.4,190.34,9.56647367]
[1736695950351,10.06647367,190.39,190.33,9.56647367]
[1736695951067,10.06647367,190.39,190.29,23.776884]
[1736695951370,14.93071267,190.36,190.27,23.776884]
[1736695951561,14.93071267,190.34,190.28,14.93071267]
[1736695951761,15.43071267,190.33,190.27,14.93071267]
[1736695952445,17.03521267,190.33,190.27,14.93071267]
[1736695952647,14.93071267,190.32,190.26,14.93071267]
[1736695952847,14.93071267,190.3,190.24,14.93071267]
[1736695953054,14.93071267,190.27,190.17,6.1216]
[1736695953353,15.43071267,190.26,190.2,14.93071267]
[1736695953554,14.93071267,190.25,190.2,14.93071267]
[1736695954062,14.93071267,190.26,190.2,14.93071267]
[1736695954247,14.93071267,190.27,190.21,14.93071267]
[1736695955674,14.93071267,190.26,190.21,14.93071267]
[1736695955873,14.93071267,190.26,190.16,24.027864]
[1736695956181,14.93071267,190.27,190.21,14.93071267]
[1736695956352,14.93071267,190.28,190.22,14.93071267]
[1736695956550,0.5,190.27,190.22,14.93071267]
[1736695957406,15.43071267,190.27,190.21,14.93071267]
[1736695958700,0.5,190.27,190.22,14.93071267]
[1736695959081,15.43071267,190.27,190.21,14.93071267]
[1736695959877,0.5,190.27,190.22,14.93071267]
[1736695960407,15.43071267,190.27,190.22,14.93071267]
[1736695961900,15.43071267,190.27,190.21,14.93071267]
[1736695962598,14.93071267,190.26,190.2,14.93071267]
[1736695962793,15.43071267,190.25,190.19,14.93071267]
[1736695963705,14.93071267,190.24,190.18,14.93071267]
[1736695963881,15.43071267,190.23,190.17,14.93071267]
[1736695964081,14.93071267,190.23,190.17,14.93071267]
[1736695966381,14.93071267,190.2,190.15,14.93071267]
[1736695966780,14.93071267,190.2,190.14,14.93071267]
[1736695967499,0.5,190.19,190.14,14.93071267]
[1736695968015,15.43071267,190.19,190.13,14.93071267]
[1736695968217,14.93071267,190.17,190.11,14.93071267]
[1736695968438,14.93071267,190.14,190.06,63.0469]
[1736695968589,14.93071267,190.14,190.09,14.93071267]
[1736695968912,14.93071267,190.15,190.09,14.93071267]
[1736695969098,1.5473,190.17,190.12,14.93071267]
[1736695969297,1.5473,190.17,190.13,14.93071267]
[1736695969609,1.5473,190.17,190.12,14.93071267]
[1736695970008,15.43071267,190.19,190.13,14.93071267]
[1736695970611,14.93071267,190.18,190.12,14.93071267]
[1736695970818,14.93071267,190.17,190.11,14.93071267]
[1736695971403,0.5,190.16,190.11,14.93071267]
[1736695971590,14.93071267,190.17,190.11,14.93071267]
[1736695971909,14.93071267,190.16,190.1,14.93071267]
[1736695972911,15.43071267,190.15,190.07,20.0]
[1736695973116,15.43071267,190.15,190.09,14.93071267]
[1736695975134,14.93071267,190.14,190.09,14.93071267]
[1736695975311,14.93071267,190.16,190.1,14.93071267]
[1736695976036,14.93071267,190.16,190.11,14.93071267]
[1736695976228,14.93071267,190.16,190.1,14.93071267]
[1736695976532,34.93071267,190.17,190.11,14.93071267]
[1736695977218,34.93071267,190.14,190.08,14.93071267]
[1736695977414,14.93071267,190.13,190.07,14.93071267]
[1736695977822,14.93071267,190.13,190.08,14.93071267]
[1736695978546,1.5743,190.14,190.09,14.93071267]
[1736695978726,1.5743,190.14,190.1,14.93071267]
[1736695979223,1.5743,190.14,190.09,14.93071267]
[1736695979935,14.93071267,190.13,190.08,14.93071267]
[1736695980231,15.43071267,190.12,190.06,14.93071267]
[1736695980415,14.9695467,190.11,190.06,14.9695467]
[1736695982222,14.9695467,190.12,190.06,14.9695467]
[1736695982429,15.4695467,190.11,190.06,14.9695467]
[1736695983018,15.4695467,190.11,190.05,14.9695467]
[1736695983220,15.4695467,190.11,190.01,28.396884]
[1736695983221,14.9695467,190.13,190.07,14.9695467]
[1736695983545,15.4695467,190.12,190.07,14.9695467]
[1736695984058,15.4695467,190.12,190.06,14.9695467]
[1736695984218,14.9695467,190.11,190.06,14.9695467]
[1736695984534,0.5,190.12,190.06,14.9695467]
[1736695984535,14.9695467,190.12,190.06,14.9695467]
[1736695985244,14.9695467,190.13,190.08,14.9695467]
[1736695985419,1.5743,190.14,190.11,14.96541108]
[1736695985746,14.96541108,190.17,190.11,14.96541108]
[1736695985916,0.5,190.15,190.1,14.96541108]
[1736695986336,15.46541108,190.15,190.09,14.96541108]
[1736695986539,14.96541108,190.14,190.09,14.96541108]
[1736695986736,14.96541108,190.14,190.08,14.96541108]
[1736695987353,15.46541108,190.13,190.07,14.96541108]
[1736695987639,14.96541108,190.12,190.06,14.96541108]
[1736695988034,14.96541108,190.12,190.07,14.96541108]
[1736695988237,14.96541108,190.13,190.07,14.96541108]
[1736695989320,14.96541108,190.12,190.06,14.96541108]
[1736695990144,14.96541108,190.13,190.08,14.96541108]
[1736695990935,14.96541108,190.12,190.06,14.96541108]
[1736695991135,14.96541108,190.1,190.05,14.96541108]
[1736695991340,14.96541108,190.1,190.04,14.96541108]
[1736695992644,14.96541108,190.08,190.03,14.96541108]
[1736695992847,14.96541108,190.08,190.02,14.96541108]
[1736695993138,14.96541108,190.08,190.02,38.74229508]
[1736695993714,2.0146,190.11,190.0,14.96541108]
[1736695993715,14.96541108,190.06,190.0,14.96541108]
[1736695993945,1.5146,190.04,189.94,30.0]
[1736695994134,2.0146,190.09,190.03,14.96541108]
[1736695994331,2.0146,190.09,190.04,14.96541108]
[1736695994527,1.5146,190.09,190.04,14.96541108]
[1736695995052,2.0146,190.09,190.04,14.96541108]
[1736695995353,2.0146,190.09,189.97,0.25098]
[1736695995354,14.96541108,190.08,190.02,14.96541108]
[1736695996146,16.98001108,190.09,190.03,14.96541108]
[1736695999340,14.96541108,190.08,190.02,14.96541108]
[1736695999852,14.96541108,190.08,190.03,14.96541108]
[1736696000161,15.46541108,190.07,190.01,14.96541108]
[1736696000461,14.96541108,190.06,190.0,14.96541108]
[1736696002067,14.96541108,190.05,189.99,14.96541108]
[1736696003465,14.96541108,190.06,190.01,14.96541108]
[1736696003778,1.5146,190.09,190.05,14.96541108]
[1736696004441,1.5146,190.09,190.04,14.96541108]
[1736696004967,16.98001108,190.09,190.03,14.96541108]
[1736696005266,14.96541108,190.08,190.03,14.96541108]
[1736696006050,0.5,190.07,190.02,14.96541108]
[1736696006455,14.96541108,190.08,190.02,14.96541108]
[1736696007473,14.96541108,190.08,189.98,23.776884]
[1736696007679,14.96541108,190.08,190.02,14.96541108]
[1736696008664,1.5146,190.09,190.0,14.96541108]
[1736696008665,14.96541108,190.06,190.0,14.96541108]
[1736696009043,14.96541108,190.03,189.98,38.74229508]
[1736696009265,1.64009,190.09,189.96,14.96541108]
[1736696009266,14.96541108,190.02,189.96,14.96541108]
[1736696010058,15.46541108,190.05,189.99,14.96541108]
[1736696010254,15.46541108,190.08,190.02,14.96541108]
[1736696011073,16.98001108,190.09,190.03,14.96541108]
[1736696011254,1.5146,190.09,190.05,14.96541108]
[1736696011571,1.5557,190.14,190.08,14.96541108]
[1736696011868,1.5557,190.14,190.09,14.96541108]
[1736696014179,1.5557,190.14,190.1,14.96541108]
[1736696014372,14.96541108,190.17,190.11,14.96541108]
[1736696014676,15.46541108,190.16,190.1,14.96541108]
[1736696014850,14.96541108,190.16,190.1,14.96541108]
[1736696015384,14.96541108,190.16,190.11,14.96541108]
[1736696015878,14.96541108,190.16,190.1,14.96541108]
[1736696017052,14.96541108,190.16,190.11,14.96541108]
[1736696017251,14.96541108,190.13,190.08,14.96541108]
[1736696017562,14.96541108,190.12,190.06,14.96541108]
[1736696018295,14.96541108,190.11,190.06,14.96541108]
[1736696018578,14.96541108,190.12,190.06,14.96541108]
[1736696019078,14.96541108,190.12,190.05,23.776884]
[1736696019079,14.96541108,190.13,190.07,14.96541108]
[1736696020058,14.96541108,190.14,190.08,14.96541108]
[1736696020260,14.96541108,190.15,190.09,14.96541108]
[1736696020460,15.46541108,190.16,190.1,14.96541108]
[1736696020961,14.96541108,190.15,190.09,14.96541108]
[1736696021164,15.46541108,190.14,190.08,14.96541108]
[1736696021362,14.96541108,190.11,190.05,14.96541108]
[1736696021553,14.96541108,190.1,190.04,19.58541108]
[1736696021749,14.96541108,190.08,190.02,14.96541108]
[1736696022967,14.96541108,190.07,190.02,14.96541108]
[1736696023868,14.96541108,190.08,190.02,14.96541108]
[1736696024378,14.96541108,190.09,190.03,14.96541108]
[1736696025088,14.96541108,190.07,190.02,14.96541108]
[1736696025458,14.96541108,190.05,190.0,14.96541108]
[1736696026072,14.96541108,190.05,189.99,14.96541108]
[1736696027254,14.96541108,190.03,189.97,14.96541108]
[1736696029762,14.96541108,190.0,189.92,4.62]
[1736696030069,14.96541108,190.0,189.94,14.96541108]
[1736696031772,14.96541108,190.0,189.9,6.1769]
[1736696031773,14.96541108,190.01,189.95,14.96541108]
[1736696032083,14.96541108,190.01,189.96,14.96541108]
[1736696032311,0.5,190.03,189.97,14.96541108]
[1736696032312,14.96541108,190.03,189.97,14.96541108]
[1736696033191,14.96541108,190.03,189.98,14.96541108]
[1736696033694,21.11351108,190.04,189.98,14.96541108]
[1736696033895,21.61351108,190.04,189.98,14.96541108]
[1736696034417,14.96541108,190.03,189.97,14.96541108]
[1736696034622,1.5717,190.05,190.0,14.96541108]
[1736696034915,1.5717,190.05,190.01,14.96541108]
[1736696036793,16.53711108,190.05,189.99,14.96541108]
[1736696036994,14.96541108,190.03,189.97,14.96541108]
[1736696037398,0.5,190.02,189.97,14.96541108]
[1736696037596,15.46541108,190.02,189.96,14.96541108]
[1736696038117,14.96541108,190.0,189.95,14.96541108]
[1736696038290,14.96541108,189.99,189.94,14.96541108]
[1736696040804,14.96541108,190.01,189.95,14.96541108]
[1736696041003,0.5,190.0,189.91,23.776884]
[1736696041212,0.5,190.0,189.95,14.96541108]
[1736696041609,15.46541108,190.03,189.97,14.96541108]
[1736696041916,0.5,190.03,189.99,14.96541108]
[1736696042512,16.53711108,190.05,189.99,14.96541108]
[1736696042513,0.5,190.04,189.99,14.96541108]
[1736696044016,2.0717,190.05,190.0,14.96541108]
[1736696044228,1.5717,190.05,190.03,14.96541108]
[1736696044523,21.11351108,190.09,190.04,14.96541108]
[1736696045216,15.46541108,190.08,190.02,14.96541108]
[1736696045521,14.96541108,190.07,190.02,14.96541108]
[1736696045725,0.5,190.06,190.02,14.96541108]
[1736696046419,35.46541108,190.06,190.0,14.96541108]
[1736696046719,14.96541108,190.04,189.99,14.96541108]
[1736696047720,14.96541108,190.06,190.0,14.96541108]
[1736696047919,15.46541108,190.08,190.02,14.96541108]
[1736696048103,16.53711108,190.1,190.05,14.96541108]
[1736696048311,1.5717,190.1,190.05,14.96541108]
[1736696048493,2.0717,190.1,190.05,14.96541108]
[1736696048702,1.5717,190.1,190.07,14.96541108]
[1736696049097,15.46541108,190.13,190.08,14.96541108]
[1736696049297,15.46541108,190.13,190.07,14.96541108]
[1736696049298,14.96541108,190.12,190.07,14.96541108]
[1736696049499,6.6596,190.14,190.04,14.96541108]
[1736696049500,14.96541108,190.09,190.04,14.96541108]
[1736696049823,14.96541108,190.09,190.03,14.96541108]
[1736696050532,14.96541108,190.06,190.01,14.96541108]
[1736696051414,15.46541108,190.05,189.99,14.96541108]
[1736696052247,14.96541108,190.04,189.98,14.96541108]
[1736696053210,14.96541108,190.05,189.99,14.96541108]
[1736696055207,14.96541108,190.04,189.99,14.96541108]
[1736696056435,0.5,190.03,189.98,14.96541108]
[1736696056604,15.46541108,190.03,189.97,14.96541108]
[1736696061815,0.5,190.03,189.97,14.96541108]
[1736696062048,15.46541108,190.06,190.0,14.96541108]
[1736696062918,14.96541108,190.05,189.99,14.96541108]
[1736696065143,14.96541108,190.04,189.98,14.96541108]
[1736696066221,8.2332,190.07,189.97,14.96541108]
[1736696066222,15.46541108,190.03,189.97,14.96541108]
[1736696066736,0.5,190.03,189.97,14.96541108]
[1736696068530,15.46541108,190.03,189.97,14.96541108]
[1736696069239,14.96541108,190.02,189.96,14.96541108]
[1736696070847,15.46541108,190.01,189.95,14.96541108]
[1736696071254,14.96541108,190.0,189.94,14.96541108]
[1736696071452,14.96541108,190.0,189.89,12.60224329]
[1736696071453,15.46541108,189.99,189.89,12.60224329]
[1736696071658,15.46541108,189.99,189.93,14.96541108]
[1736696072032,14.96541108,189.98,189.92,14.96541108]
[1736696072231,14.96541108,189.95,189.89,14.96541108]
[1736696072440,14.96541108,189.97,189.91,14.96541108]
[1736696072770,0.5,189.96,189.91,14.96541108]
[1736696073255,15.46541108,189.96,189.9,14.96541108]
[1736696074055,14.96541108,189.97,189.92,14.96541108]
[1736696074364,1.5575,190.0,189.96,14.96541108]
[1736696074658,1.5575,190.0,189.97,14.96541108]
[1736696075033,1.5575,190.0,189.95,14.96541108]
[1736696075433,1.5575,190.0,189.96,14.96541108]
[1736696077859,1.5575,190.0,189.98,14.96541108]
[1736696078058,16.52291108,190.05,189.99,14.96541108]
[1736696078269,0.5,190.04,189.99,14.96541108]
[1736696078639,15.46541108,190.04,189.98,14.96541108]
[1736696080857,1.5575,190.05,190.0,14.96541108]
[1736696081052,1.5575,190.05,190.01,14.96541108]
[1736696081256,1.5575,190.05,190.02,14.96541108]
[1736696081454,1.5575,190.05,190.01,14.96541108]
[1736696084187,1.5575,190.05,190.0,14.96541108]
[1736696085358,1.5575,190.05,190.01,14.96541108]
[1736696086269,1.5575,190.05,190.0,14.96541108]
[1736696086447,15.46541108,190.04,189.98,14.96541108]
[1736696087451,16.52291108,190.05,189.99,14.96541108]
[1736696087657,1.5575,190.05,190.0,14.96541108]
[1736696088058,2.0575,190.05,190.0,14.96541108]
[1736696088255,17.02291108,190.05,189.99,14.96541108]
[1736696088647,2.0575,190.05,190.0,14.96541108]
[1736696089653,1.5575,190.05,190.0,14.96541108]
[1736696091470,17.02291108,190.05,189.99,14.96541108]
[1736696093172,1.5575,190.05,190.0,14.96541108]
[1736696093377,1.5575,190.05,190.02,14.96541108]
[1736696094778,1.5575,190.05,190.01,14.96541108]
[1736696096452,16.52291108,190.05,189.99,14.96541108]
[1736696096683,15.46541108,190.04,189.98,14.96541108]
[1736696097064,14.96541108,190.02,189.97,14.96541108]
[1736696097260,15.46541108,190.01,189.95,14.96541108]
[1736696097671,0.5,190.01,189.96,14.96541108]
[1736696098282,15.46541108,190.01,189.95,14.96541108]
[1736696101392,14.96541108,189.99,189.94,14.96541108]
[1736696101571,14.96541108,189.99,189.93,14.96541108]
[1736696102481,14.96541108,189.99,189.94,14.96541108]
[1736696102687,15.46541108,190.02,189.96,14.96541108]
[1736696103791,14.96541108,190.01,189.96,14.96541108]
[1736696104380,15.46541108,190.02,189.96,14.96541108]
[1736696104879,14.96541108,190.01,189.96,14.96541108]
[1736696105302,14.96541108,190.04,189.99,14.96541108]
[1736696105482,1.5575,190.05,190.01,14.96541108]
[1736696105679,1.5575,190.05,190.0,14.96541108]
[1736696105997,2.0575,190.05,190.01,14.96541108]
[1736696106187,22.0575,190.05,190.01,14.96541108]
[1736696106388,21.5575,190.05,190.01,14.96541108]
[1736696106588,22.0575,190.05,190.01,14.96541108]
[1736696107007,2.0575,190.05,190.01,14.96541108]
[1736696107297,22.0575,190.05,190.01,14.96541108]
[1736696107704,21.5575,190.05,190.01,14.96541108]
[1736696107913,36.52291108,190.05,190.0,14.96541108]
[1736696108083,37.02291108,190.05,190.0,14.96541108]
[1736696108400,14.96541108,190.03,189.98,14.96541108]
[1736696109586,14.96541108,190.03,189.97,14.96541108]
[1736696110183,15.46541108,190.04,189.98,14.96541108]
[1736696111609,14.96541108,190.03,189.97,14.96541108]
[1736696112585,14.96541108,189.99,189.92,7.98224329]
[1736696112790,21.68299,190.05,189.92,7.98224329]
[1736696112791,14.96541108,189.98,189.92,22.94765437]
[1736696113007,14.96541108,189.99,189.93,14.96541108]
[1736696113311,14.96541108,189.98,189.93,14.96541108]
[1736696113495,14.96541108,189.98,189.92,38.74229508]
[1736696114424,0.5,190.02,189.89,37.98224329]
[1736696114425,14.96541108,189.94,189.89,12.60224329]
[1736696114582,1.6129,190.0,189.89,7.98224329]
[1736696114583,14.96541108,189.93,189.89,7.98224329]
[1736696114788,14.96541108,189.94,189.89,7.98224329]
[1736696114985,14.96541108,189.95,189.89,22.94765437]
[1736696115189,14.96541108,189.96,189.9,14.96541108]
[1736696115389,35.46541108,189.98,189.92,14.96541108]
[1736696115606,35.46541108,189.98,189.9,23.776884]
[1736696115607,34.96541108,189.98,189.93,14.96541108]
[1736696116508,1.6129,190.0,189.95,14.96541108]
[1736696117026,14.96541108,190.04,189.98,14.96541108]
[1736696117191,20.0,190.01,189.99,14.96541108]
[1736696117393,20.0,190.01,189.98,14.96541108]
[1736696118296,34.96541108,190.02,189.96,14.96541108]
[1736696118810,14.96541108,190.01,189.96,14.96541108]
[1736696119021,14.96541108,190.0,189.94,14.96541108]
[1736696121024,14.96541108,189.99,189.94,14.96541108]
[1736696121411,14.96541108,189.98,189.93,14.96541108]
[1736696121824,14.96541108,189.97,189.92,14.96541108]
[1736696122206,14.96541108,189.96,189.91,14.96541108]
[1736696123505,14.96541108,189.95,189.9,38.74229508]
[1736696123704,1.6129,189.97,189.86,7.98224329]
[1736696123705,14.96541108,189.93,189.87,14.96541108]
[1736696123900,14.96541108,189.92,189.87,14.96541108]
[1736696125828,14.96541108,189.93,189.87,14.96541108]
[1736696126231,14.96541108,189.93,189.88,14.96541108]
[1736696126428,14.96541108,189.95,189.9,14.96541108]
[1736696126726,14.96541108,189.94,189.85,23.776884]
[1736696126923,14.96541108,189.94,189.89,14.96541108]
[1736696127512,14.96541108,189.94,189.88,14.96541108]
[1736696127915,14.96541108,189.94,189.89,14.96541108]
[1736696128112,15.46541108,189.93,189.83,7.98224329]
[1736696128324,14.96541108,189.9,189.83,7.98224329]
[1736696128510,14.96541108,189.9,189.85,14.96541108]
[1736696128711,14.96541108,189.91,189.85,14.96541108]
[1736696128911,14.96541108,189.91,189.86,14.96541108]
[1736696129415,14.96541108,189.88,189.82,7.98224329]
[1736696129617,1.5976,189.9,189.82,7.98224329]
[1736696129811,14.96541108,189.87,189.82,7.98224329]
[1736696130314,14.96541108,189.88,189.83,14.96541108]
[1736696130627,1.5976,189.9,189.79,23.776884]
[1736696130929,1.5976,189.9,189.85,14.96541108]
[1736696131234,17.06301108,189.9,189.84,14.96541108]
[1736696132338,17.06301108,189.9,189.78,40.6526]
[1736696132339,1.5976,189.9,189.85,14.96541108]
[1736696132523,15.46541108,189.93,189.87,14.96541108]
[1736696132932,14.96541108,189.91,189.86,14.96541108]
[1736696133138,14.96541108,189.9,189.84,14.96541108]
[1736696135029,14.96541108,189.88,189.8,23.776884]
[1736696135235,14.96541108,189.88,189.83,14.96541108]
[1736696135544,14.96541108,189.88,189.78,40.6526]
[1736696135836,14.96541108,189.88,189.83,14.96541108]
[1736696136044,14.96541108,189.88,189.78,40.6526]
[1736696136045,14.96541108,189.88,189.79,23.776884]
[1736696136346,14.96541108,189.88,189.82,14.96541108]
[1736696136939,14.96541108,189.88,189.83,14.96541108]
[1736696137250,14.96541108,189.89,189.83,14.96541108]
[1736696137547,14.96541108,189.86,189.8,14.96541108]
[1736696137741,14.96541108,189.83,189.77,14.96541108]
[1736696138736,14.96541108,189.81,189.75,14.96541108]
[1736696139232,14.96541108,189.82,189.76,14.96541108]
[1736696140041,14.96541108,189.82,189.77,14.96541108]
[1736696140334,15.46541108,189.81,189.75,14.96541108]
[1736696140836,14.96541108,189.84,189.78,14.96541108]
[1736696141411,1.5976,189.86,189.75,30.0]
[1736696141738,21.22431108,189.9,189.84,14.96541108]
[1736696142146,14.96541108,189.88,189.82,14.96541108]
[1736696142437,15.46541108,189.89,189.83,14.96541108]
[1736696142745,14.96541108,189.89,189.83,14.96541108]
[1736696143329,14.96541108,189.89,189.84,14.96541108]
[1736696143527,14.96541108,189.9,189.84,14.96541108]
[1736696143725,36.56301108,189.91,189.85,14.96541108]
[1736696143942,1.5976,189.91,189.87,14.96541108]
[1736696144139,1.5976,189.91,189.86,14.96541108]
[1736696144645,36.56301108,189.91,189.85,14.96541108]
[1736696145152,14.96541108,189.89,189.84,14.96541108]
[1736696145549,14.96541108,189.88,189.83,14.96541108]
[1736696146254,14.96541108,189.87,189.82,14.96541108]
[1736696147531,14.96541108,189.86,189.81,14.96541108]
[1736696148355,14.96541108,189.85,189.8,14.96541108]
[1736696148567,14.96541108,189.83,189.77,14.96541108]
[1736696148730,14.96541108,189.83,189.73,31.5652]
[1736696148731,14.96541108,189.83,189.78,14.96541108]
[1736696149547,14.96541108,189.83,189.77,14.96541108]
[1736696149949,16.51621108,189.83,189.77,14.96541108]
[1736696150255,16.51621108,189.83,189.76,14.96541108]
[1736696150256,15.46541108,189.82,189.76,14.96541108]
[1736696150649,14.96541108,189.81,189.75,14.96541108]
[1736696151240,0.5,189.82,189.72,4.66]
[1736696151241,14.96541108,189.8,189.74,14.96541108]
[1736696151556,14.96541108,189.8,189.75,14.96541108]
[1736696152052,16.51621108,189.83,189.78,14.96541108]
[1736696152458,16.51621108,189.83,189.77,14.96541108]
[1736696153360,14.96541108,189.81,189.76,14.96541108]
[1736696153539,14.96541108,189.81,189.75,14.96541108]
[1736696153939,14.96541108,189.81,189.76,14.96541108]
[1736696154661,14.96541108,189.82,189.77,14.96541108]
[1736696154864,16.51621108,189.83,189.77,14.96541108]
[1736696155238,16.51621108,189.83,189.79,14.96541108]
[1736696155239,1.5508,189.83,189.79,14.96541108]
[1736696155553,21.08501108,189.87,189.81,14.96541108]
[1736696155733,14.96541108,189.82,189.73,0.79020569]
[1736696155937,14.96541108,189.8,189.74,14.96541108]
[1736696157043,14.96541108,189.8,189.75,14.96541108]
[1736696157243,20.0,189.78,189.72,23.776884]
[1736696157465,20.0,189.78,189.74,14.96541108]
[1736696160261,14.96541108,189.81,189.75,14.96541108]
[1736696160473,14.96541108,189.83,189.77,14.96541108]
[1736696160785,14.96541108,189.81,189.76,23.776884]
[1736696160956,14.96541108,189.8,189.74,14.96541108]
[1736696161140,14.96541108,189.77,189.71,14.96541108]
[1736696161539,14.96541108,189.77,189.72,38.74229508]
[1736696162443,1.5508,189.8,189.68,7.03560972]
[1736696162444,14.96541108,189.76,189.7,23.776884]
[1736696162650,14.96541108,189.75,189.69,14.96541108]
[1736696162967,14.96541108,189.74,189.68,14.96541108]
[1736696163140,14.96541108,189.73,189.67,21.55531108]
[1736696163341,14.96541108,189.73,189.68,23.776884]
[1736696163544,14.96541108,189.74,189.68,14.96541108]
[1736696163859,14.96541108,189.73,189.67,21.55531108]
[1736696164069,14.96541108,189.73,189.68,23.776884]
[1736696164234,14.96541108,189.72,189.68,23.776884]
[1736696165137,14.96541108,189.75,189.7,23.776884]
[1736696165741,14.96541108,189.74,189.7,23.776884]
[1736696165947,14.96541108,189.74,189.68,14.96541108]
[1736696166149,14.96541108,189.72,189.66,14.96541108]
[1736696166363,14.96541108,189.73,189.68,23.776884]
[1736696166570,0.12549,189.78,189.63,63.1452]
[1736696166571,14.96541108,189.71,189.63,31.5652]
[1736696166776,14.96541108,189.7,189.65,14.96541108]
[1736696167145,14.96541108,189.7,189.66,23.776884]
[1736696167348,14.96541108,189.71,189.66,23.776884]
[1736696167565,14.96541108,189.72,189.66,14.96541108]
[1736696167867,14.96541108,189.7,189.64,14.96541108]
[1736696168373,14.96541108,189.7,189.65,14.96541108]
[1736696168668,14.96541108,189.71,189.65,14.96541108]
[1736696169450,14.96541108,189.71,189.63,6.2852]
[1736696169642,14.96541108,189.71,189.65,14.96541108]
[1736696169846,14.96541108,189.71,189.66,23.776884]
[1736696170047,0.5,189.75,189.63,6.2852]